bitfinex-derivatives/quotes_ETHF0:USTF0_20250602
["timestamp","ask_amount","ask_price","bid_price","bid_amount"]
[1748871909065,3.9e-07,2513.8,2513.7,40.82545506]
[1748871911170,3.9e-07,2513.8,2513.7,5.02545506]
[1748871912071,3.9e-07,2513.8,2513.7,14.84745506]
[1748871912470,3.9e-07,2513.8,2513.7,50.64745506]
[1748871912870,3.9e-07,2513.8,2513.7,47.64745506]
[1748871913172,3.9e-07,2513.8,2513.7,45.64745506]
[1748871913369,3.9e-07,2513.8,2513.7,40.82545506]
[1748871913965,5.79524039,2513.8,2513.7,4.23017506]
[1748871914170,9.00304039,2513.8,2513.7,4.23017506]
[1748871914870,9.00304039,2513.8,2513.7,5.02545506]
[1748871914871,7.07704039,2513.8,2513.7,5.02545506]
[1748871915070,26.63304039,2513.8,2513.7,5.02545506]
[1748871915373,26.63304039,2513.8,2513.7,4.23017506]
[1748871915877,34.84084039,2513.8,2513.7,4.23017506]
[1748871916070,15.10684039,2513.8,2513.7,4.23017506]
[1748871916272,34.84084039,2513.8,2513.7,4.23017506]
[1748871916773,35.11594039,2513.8,2513.7,4.23017506]
[1748871917870,35.11594039,2513.8,2513.7,3.12276506]
[1748871918074,35.11594039,2513.8,2513.7,0.65633506]
[1748871918275,35.11594039,2513.8,2513.7,5.06e-06]
[1748871918474,0.7955,2513.0,2512.9,0.00597039]
[1748871918776,20.5295,2513.0,2512.9,0.00597039]
[1748871919172,21.793,2513.0,2512.9,0.00597039]
[1748871919776,21.793,2513.0,2512.9,0.80150039]
[1748871919975,21.793,2513.0,2512.9,0.00597039]
[1748871920977,26.793,2513.0,2512.9,0.00597039]
[1748871921181,7.059,2513.0,2512.9,0.00597039]
[1748871921475,26.791,2513.0,2512.9,0.00597039]
[1748871921880,1.98883,2512.9,2512.0,4.235]
[1748871922078,0.79574,2512.3,2512.2,0.79573]
[1748871922280,0.79578,2512.1,2512.0,3.2078]
[1748871922582,0.79585,2511.9,2511.8,2.08178]
[1748871922782,3.2078,2511.9,2511.6,1.1252]
[1748871923083,3.2078,2511.9,2511.5,0.00597039]
[1748871923084,0.79594,2511.6,2511.5,0.00597039]
[1748871923280,23.73674,2511.6,2511.5,0.00597039]
[1748871923481,28.73674,2511.6,2511.5,0.00597039]
[1748871923984,30.11774,2511.6,2511.5,0.00597039]
[1748871924281,25.11774,2511.6,2511.5,0.00597039]
[1748871924582,30.11774,2511.6,2511.5,0.00597039]
[1748871924774,29.3218,2511.6,2510.7,3.2078]
[1748871924979,3.2078,2511.0,2510.5,1.3129]
[1748871925183,4.812,2511.5,2510.3,37.79085]
[1748871925184,3.2078,2510.7,2510.3,37.79085]
[1748871925384,6.98918,2510.9,2510.8,0.79619]
[1748871925385,6.193,2510.9,2510.8,0.79619]
[1748871925585,3.2078,2511.1,2511.0,0.79613]
[1748871925991,1.381,2511.4,2511.3,0.79604]
[1748871926199,3.2078,2511.6,2511.5,0.79597]
[1748871926890,0.7959,2511.8,2511.5,3.2078]
[1748871927393,0.796,2511.4,2511.3,2.11072]
[1748871927593,8.0208,2511.6,2511.1,0.79608]
[1748871927793,1.2997,2511.5,2511.0,1.3147]
[1748871928096,1.2997,2511.5,2511.4,0.796]
[1748871928286,5.60893,2511.7,2511.6,0.79594]
[1748871928486,25.34793,2511.7,2511.6,0.79594]
[1748871928890,1.2997,2511.8,2511.7,0.79591]
[1748871928891,2.09559,2511.8,2511.7,0.79591]
[1748871929086,21.0377,2511.8,2511.2,1.3147]
[1748871929389,0.79602,2511.4,2511.3,0.79603]
[1748871929589,0.79597,2511.6,2511.5,0.79597]
[1748871929792,0.79601,2511.4,2511.3,0.79602]
[1748871929988,21.0377,2511.8,2510.8,0.00597039]
[1748871929989,1.2822,2511.5,2510.8,0.00597039]
[1748871930194,0.79616,2510.9,2510.8,0.00597039]
[1748871930492,22.9448,2510.9,2510.8,0.00597039]
[1748871930681,1.103,2511.4,2510.8,0.80216039]
[1748871930887,3.2078,2511.5,2511.4,0.796]
[1748871931189,4.49,2511.8,2511.7,0.79591]
[1748871931596,22.9468,2511.8,2511.7,0.79591]
[1748871932095,8.81767,2511.9,2511.8,0.79588]
[1748871932492,0.80180039,2512.0,2511.9,0.79585]
[1748871932791,0.00597039,2512.0,2511.9,0.79585]
[1748871933493,0.80178039,2512.0,2511.9,0.79585]
[1748871933800,0.00597039,2512.0,2511.9,0.79585]
[1748871934096,0.80183039,2512.0,2511.9,0.79585]
[1748871934286,0.79587,2511.9,2511.8,0.79586]
[1748871934491,19.74397039,2512.0,2511.3,4.16599]
[1748871934687,0.7959,2511.8,2511.7,0.79589]
[1748871934992,0.79597,2511.5,2511.4,2.06359]
[1748871935194,0.79603,2511.4,2511.3,0.79601]
[1748871935394,0.79603,2511.4,2511.3,2.11021]
[1748871935691,0.79599,2511.5,2511.4,0.79598]
[1748871936101,1.2886,2511.7,2511.6,0.79594]
[1748871936394,4.814,2511.8,2511.7,0.79591]
[1748871936697,0.79593,2511.7,2511.6,0.79592]
[1748871936998,0.79597,2511.5,2511.4,0.79598]
[1748871937192,21.82253,2511.7,2511.6,0.79594]
[1748871937392,19.738,2511.7,2511.2,3.2078]
[1748871937598,4.4964,2511.6,2511.0,3.30452]
[1748871937802,0.79608,2511.3,2511.2,0.79606]
[1748871938093,0.7961,2511.2,2511.1,0.79608]
[1748871938395,0.79606,2511.3,2511.2,0.79604]
[1748871938599,0.79606,2511.3,2511.0,1.3142]
[1748871938600,3.2078,2511.3,2510.8,0.00597039]
[1748871938899,0.79615,2511.0,2510.9,0.79613]
[1748871939095,0.79616,2510.9,2510.8,1.38427039]
[1748871939297,19.737,2510.9,2510.8,2.18046039]
[1748871939501,0.79612,2511.1,2511.0,0.7961]
[1748871939797,0.79604,2511.4,2511.3,0.79602]
[1748871940100,19.738,2511.4,2511.3,0.79604]
[1748871940601,20.534,2511.4,2511.3,0.79604]
[1748871940788,20.534,2511.4,2511.2,0.79606]
[1748871940789,0.79607,2511.3,2511.2,0.79606]
[1748871941297,0.79603,2511.4,2511.3,0.79601]
[1748871941497,20.53303,2511.4,2511.3,0.79601]
[1748871941697,3.2078,2511.6,2511.5,0.79597]
[1748871942394,22.9438,2511.6,2511.5,0.79597]
[1748871942599,23.73974,2511.6,2511.5,0.79597]
[1748871942799,23.73974,2511.6,2511.4,2.14928]
[1748871942800,0.79597,2511.5,2511.4,2.14928]
[1748871943094,0.79597,2511.5,2511.4,1.3533]
[1748871943293,22.9438,2511.6,2511.3,1.1217]
[1748871943294,0.796,2511.4,2511.3,1.1217]
[1748871943493,0.79607,2511.2,2511.1,1.1108]
[1748871943693,0.79607,2511.2,2511.1,1.9069]
[1748871944102,0.79606,2511.3,2511.2,0.79603]
[1748871944401,0.79603,2511.4,2511.3,0.796]
[1748871944597,3.2078,2511.6,2511.1,3.10101]
[1748871944790,19.736,2511.5,2511.4,0.79597]
[1748871944994,3.2078,2511.9,2511.8,0.79588]
[1748871945190,4.82097039,2512.0,2511.9,0.79584]
[1748871945493,0.00597039,2512.0,2511.9,4.00364]
[1748871946002,4.815,2512.4,2512.0,1.98952]
[1748871946202,4.815,2512.4,2512.3,0.79572]
[1748871946500,25.148,2512.4,2512.3,0.79572]
[1748871946800,20.332,2512.4,2512.3,0.79572]
[1748871947004,21.1277,2512.4,2512.2,0.79575]
[1748871947399,21.1277,2512.4,2512.1,0.80174039]
[1748871947400,20.332,2512.4,2512.1,0.80174039]
[1748871947594,20.332,2512.4,2512.1,0.00597039]
[1748871947792,0.597,2512.4,2512.3,0.79572]
[1748871947998,20.332,2512.4,2512.3,0.79572]
[1748871948705,20.332,2512.4,2512.1,0.00597039]
[1748871948706,20.332,2512.4,2512.2,0.79573]
[1748871948901,21.12769,2512.4,2512.2,0.79573]
[1748871949307,1.39269,2512.4,2512.2,0.79573]
[1748871949505,0.79575,2512.2,2512.1,0.00597039]
[1748871949801,20.52774,2512.3,2512.1,0.00597039]
[1748871950006,19.732,2512.3,2512.1,0.00597039]
[1748871950305,20.328,2512.4,2512.3,0.79572]
[1748871950502,20.328,2512.4,2512.1,0.00597039]
[1748871950699,0.79572,2512.3,2512.1,0.00597039]
[1748871950890,0.79573,2512.3,2512.1,0.00597039]
[1748871951095,0.79574,2512.3,2512.1,0.80175039]
[1748871951292,0.597,2512.4,2512.1,0.00597039]
[1748871951495,0.597,2512.4,2512.3,0.79572]
[1748871951696,3.9e-07,2512.6,2512.5,0.79565]
[1748871951905,3.9e-07,2512.6,2512.5,4.00345]
[1748871952201,1.44264848,2512.9,2512.8,0.79556]
[1748871952504,1.44264848,2512.9,2512.8,4.00336]
[1748871952705,1.44264848,2512.9,2512.8,10.22866623]
[1748871952907,3.95056011,2513.2,2513.1,0.79546]
[1748871953095,3.95056011,2513.2,2512.8,7.43477023]
[1748871953297,23.67956011,2513.2,2512.8,4.22697023]
[1748871953602,3.95056011,2513.2,2513.0,0.79548]
[1748871953802,23.67856011,2513.2,2513.1,0.79546]
[1748871953999,23.67856011,2513.2,2513.0,0.7955]
[1748871954199,23.67856011,2513.2,2513.0,0.79549]
[1748871954400,25.06850011,2513.2,2512.9,36.59551]
[1748871954600,27.48086011,2513.2,2512.9,35.8]
[1748871954801,0.7955,2513.1,2512.8,4.22697023]
[1748871955000,28.27631011,2513.2,2512.9,0.79552]
[1748871955204,7.75286011,2513.2,2512.8,8.19663]
[1748871955408,0.5945,2513.2,2513.0,0.79549]
[1748871955603,0.5945,2513.2,2512.8,3.0]
[1748871955604,0.79548,2513.1,2512.8,3.0]
[1748871955801,0.5945,2513.2,2512.8,3.79555]
[1748871956107,0.79546,2513.1,2512.8,3.0]
[1748871956405,0.79546,2513.1,2512.8,3.79554]
[1748871956601,4.59774,2513.2,2512.9,0.79551]
[1748871956806,0.79547,2513.1,2512.8,3.79554]
[1748871957008,3.8023,2513.2,2512.9,0.79553]
[1748871957205,3.8023,2513.2,2512.8,3.79554]
[1748871957407,3.8023,2513.2,2512.8,3.0]
[1748871957408,4.59774,2513.2,2512.8,3.0]
[1748871957704,19.721,2513.1,2513.0,0.79548]
[1748871957899,19.721,2513.1,2513.0,0.7955]
[1748871958301,19.721,2513.1,2512.8,3.0]
[1748871958302,0.5945,2513.2,2513.1,0.79546]
[1748871959502,0.5945,2513.2,2513.1,5.79546]
[1748871959703,0.5945,2513.2,2513.1,10.59646]
[1748871960507,0.5945,2513.2,2513.1,5.59646]
[1748871961708,0.5945,2513.2,2513.0,1.3664]
[1748871962005,0.79552,2513.0,2512.8,3.79556]
[1748871962210,0.5945,2513.2,2513.1,0.79546]
[1748871962410,0.5945,2513.2,2512.8,4.98889]
[1748871962411,20.3105,2513.2,2512.9,2.1161]
[1748871962709,0.79553,2512.9,2512.8,3.0]
[1748871962910,4.00333,2512.9,2512.8,3.0]
[1748871963115,13.80433,2512.9,2512.8,3.0]
[1748871963411,4.00333,2512.9,2512.8,3.0]
[1748871963609,5.8891,2513.0,2512.8,3.0]
[1748871963806,23.71833,2512.9,2512.8,3.0]
[1748871964005,25.02803,2512.9,2512.8,3.0]
[1748871964206,24.2325,2512.9,2512.8,3.79556]
[1748871964408,19.714,2512.9,2512.8,3.0]
[1748871964710,33.51833,2512.9,2512.8,0.48353]
[1748871964914,0.79575,2512.2,2512.1,0.00597039]
[1748871965109,23.71755,2512.2,2512.1,0.00597039]
[1748871966017,28.71755,2512.2,2512.1,0.00597039]
[1748871967608,28.71755,2512.2,2510.9,1.99039]
[1748871967609,1.98982,2511.7,2511.0,5.59711]
[1748871967808,0.79607,2511.2,2511.1,1.3804]
[1748871968120,0.79611,2511.1,2510.7,3.2078]
[1748871968318,0.79616,2510.9,2510.8,1.3804]
[1748871968521,0.79623,2510.7,2510.6,1.3539]
[1748871968716,0.79623,2510.7,2510.3,1.1354]
[1748871968717,0.79623,2510.7,2510.4,4.35062063]
[1748871968913,0.79629,2510.5,2510.4,4.90822063]
[1748871969109,23.71809,2510.5,2510.4,3.55432063]
[1748871969310,22.9218,2510.5,2510.4,3.55432063]
[1748871969508,20.51029,2510.5,2510.4,2.37153722]
[1748871969710,23.71809,2510.5,2510.4,2.37153722]
[1748871970018,22.9218,2510.5,2510.4,0.80229039]
[1748871970315,20.51029,2510.5,2510.4,0.00597039]
[1748871970516,24.31369,2510.5,2510.4,0.00597039]
[1748871971716,3.8034,2510.5,2510.4,0.80229039]
[1748871972021,20.3126,2510.5,2510.4,0.00597039]
[1748871972317,21.10889,2510.5,2510.4,0.00597039]
[1748871972518,22.45279,2510.5,2510.4,0.00597039]
[1748871972716,0.5956,2510.5,2510.4,0.80229039]
[1748871972917,20.3166,2510.5,2510.4,0.80229039]
[1748871973311,0.5956,2510.5,2510.4,0.80229039]
[1748871974108,0.5956,2510.5,2510.4,0.00597039]
[1748871974614,1.39189,2510.5,2510.4,0.00597039]
[1748871974813,0.5956,2510.5,2510.4,0.00597039]
[1748871975114,20.3156,2510.5,2510.4,0.80229039]
[1748871975314,21.11189,2510.5,2510.4,0.00597039]
[1748871976014,21.5981,2510.5,2510.4,0.00597039]
[1748871976216,20.3176,2510.5,2510.4,0.80229039]
[1748871976417,0.5956,2510.5,2510.4,0.80229039]
[1748871976617,20.3176,2510.5,2510.4,0.00597039]
[1748871976818,20.3176,2510.5,2510.4,0.80229039]
[1748871977320,0.5956,2510.5,2510.4,0.00597039]
[1748871977518,21.11289,2510.5,2510.4,0.00597039]
[1748871977714,22.48799,2510.5,2510.4,0.00597039]
[1748871978218,27.48799,2510.5,2510.4,0.00597039]
[1748871979225,1.99106,2510.1,2509.4,1.1022]
[1748871979411,3.2078,2509.8,2509.5,1.3284]
[1748871979616,19.722,2509.7,2509.6,0.79656]
[1748871979818,19.722,2509.7,2509.3,0.79665]
[1748871980017,0.7967,2509.2,2509.0,3.16256932]
[1748871980223,0.00597039,2509.4,2509.0,3.16255932]
[1748871980420,1.38107039,2509.4,2509.1,0.79673]
[1748871980627,1.38107039,2509.4,2509.0,2.36581932]
[1748871980821,0.79673,2509.1,2509.0,2.36581932]
[1748871981216,2.14473,2509.1,2509.0,2.36581932]
[1748871981620,21.073,2509.1,2509.0,3.16258932]
[1748871981820,21.073,2509.1,2509.0,2.36581932]
[1748871982016,0.00597039,2509.4,2509.3,0.79667]
[1748871982221,0.00597039,2509.4,2509.3,4.00447]
[1748871982521,4.796,2510.2,2509.3,4.00447]
[1748871982522,3.2078,2510.3,2510.2,0.79638]
[1748871982920,22.9328,2510.3,2510.2,0.79638]
[1748871983114,3.2078,2510.3,2510.2,0.79638]
[1748871983322,23.72817,2510.3,2510.2,0.79638]
[1748871983522,3.2078,2510.3,2510.2,0.79638]
[1748871983820,22.9318,2510.3,2510.2,0.79638]
[1748871984022,0.60157039,2510.5,2510.4,0.79632]
[1748871984528,20.32557039,2510.5,2510.4,0.79632]
[1748871984727,21.12189039,2510.5,2510.3,0.79632]
[1748871985026,20.32557039,2510.5,2510.4,0.79632]
[1748871985413,20.32557039,2510.5,2510.3,0.79633]
[1748871985619,1.39786039,2510.5,2510.4,2.06492]
[1748871985826,20.32557039,2510.5,2510.1,1.8773]
[1748871986027,24.79837039,2510.5,2510.2,1.2686]
[1748871986321,3.80937039,2510.5,2510.2,1.2686]
[1748871986529,3.80937039,2510.5,2510.4,0.79632]
[1748871986720,23.53337039,2510.5,2510.4,0.79632]
[1748871986921,24.32967039,2510.5,2510.2,1.2686]
[1748871987224,23.53337039,2510.5,2510.3,0.79634]
[1748871987418,23.53337039,2510.5,2510.2,0.79637]
[1748871987622,0.79633,2510.4,2510.3,0.79635]
[1748871987916,24.84037039,2510.5,2510.4,0.79632]
[1748871987917,23.53337039,2510.5,2510.4,0.79632]
[1748871988129,0.79632,2510.4,2510.3,0.79633]
[1748871988524,24.32968039,2510.5,2510.4,0.79632]
[1748871989028,23.53337039,2510.5,2510.4,0.79632]
[1748871989329,23.53237039,2510.5,2510.2,1.3458]
[1748871989628,23.53237039,2510.5,2510.4,0.79632]
[1748871989833,3.80937039,2510.5,2510.4,0.79632]
[1748871990034,23.53237039,2510.5,2510.4,0.79632]
[1748871990324,20.32457039,2510.5,2510.4,0.79632]
[1748871991227,0.60157039,2510.5,2510.4,0.79632]
[1748871992328,3.2078,2511.2,2510.4,8.2078]
[1748871992533,3.2078,2511.5,2511.4,0.796]
[1748871992724,6.34293448,2511.8,2511.3,3.36948]
[1748871993036,0.79594,2511.6,2511.4,0.796]
[1748871993236,0.79598,2511.5,2511.4,0.796]
[1748871993436,0.79598,2511.5,2511.2,39.01377039]
[1748871993732,0.79598,2511.5,2511.4,0.796]
[1748871994329,0.79603,2511.4,2511.2,3.21377039]
[1748871994533,0.79601,2511.4,2511.3,0.79602]
[1748871994734,0.79604,2511.3,2511.2,0.00597039]
[1748871994935,4.00378,2511.5,2511.2,0.00597039]
[1748871995231,1.39251,2511.4,2511.3,0.79603]
[1748871995430,0.79604,2511.3,2511.2,0.00597039]
[1748871995942,0.5965,2511.4,2511.2,0.00597039]
[1748871995943,0.5965,2511.4,2511.3,0.79604]
[1748871996149,0.79604,2511.3,2511.2,0.00597039]
[1748871996643,0.5965,2511.4,2511.2,0.00597039]
[1748871996848,0.5965,2511.4,2511.3,0.79604]
[1748871997245,0.5965,2511.4,2511.3,2.95144]
[1748871997439,1.3925,2511.4,2511.3,1.06]
[1748871997643,0.79604,2511.3,2511.2,0.00597039]
[1748871997844,0.79604,2511.3,2511.2,0.80203039]
[1748871998042,0.5965,2511.4,2511.2,0.00597039]
[1748871998043,1.39252,2511.4,2511.2,0.00597039]
[1748871998236,19.714,2511.3,2511.2,0.00597039]
[1748871998551,20.51004,2511.3,2511.2,0.00597039]
[1748871999139,25.30504,2511.3,2511.2,0.00597039]
[1748871999851,0.79604,2511.3,2511.2,0.00597039]
[1748872000249,20.50904,2511.3,2511.2,0.80204039]
[1748872000443,20.50904,2511.3,2511.2,0.00597039]
[1748872000846,0.5965,2511.4,2511.3,0.79604]
[1748872001345,21.1045,2511.4,2511.3,1.1402]
[1748872001547,20.3085,2511.4,2511.3,1.93624]
[1748872001852,0.5965,2511.4,2511.3,1.93624]
[1748872002044,0.5965,2511.4,2511.3,2.99734]
[1748872005244,0.00597039,2511.7,2511.6,0.79594]
[1748872006150,0.79604,2511.3,2511.2,0.00597039]
[1748872006451,20.50304,2511.3,2511.2,0.00597039]
[1748872006854,21.82814,2511.3,2511.2,0.00597039]
[1748872007153,26.82814,2511.3,2511.2,3.9e-07]
[1748872007354,27.89904,2511.3,2511.2,3.9e-07]
[1748872007556,8.19204,2511.3,2511.2,3.9e-07]
[1748872007750,32.69304,2511.3,2511.2,3.9e-07]
[1748872008253,32.69204,2511.3,2511.2,3.9e-07]
[1748872008557,3.19204,2511.3,2511.2,3.9e-07]
[1748872008752,21.82814,2511.3,2511.2,3.9e-07]
[1748872008960,21.82814,2511.3,2511.2,0.79606039]
[1748872008961,19.707,2511.3,2511.2,0.79606039]
[1748872009154,20.50304,2511.3,2511.2,3.9e-07]
[1748872011157,20.50204,2511.3,2511.2,3.9e-07]
[1748872011660,25.50204,2511.3,2511.2,3.9e-07]
[1748872011862,26.80334,2511.3,2511.2,3.9e-07]
[1748872012552,2.09734,2511.3,2511.2,3.9e-07]
[1748872012758,26.58734,2511.3,2511.2,3.9e-07]
[1748872014151,31.58734,2511.3,2511.2,3.9e-07]
[1748872014552,0.79632,2510.4,2510.3,2.43423836]
[1748872014757,23.70912,2510.4,2510.3,1.18213836]
[1748872015757,0.79642,2510.1,2510.0,1.27219506]
[1748872015953,0.79642,2510.1,2509.6,0.66232791]
[1748872015954,1.99114,2510.0,2509.6,0.66232791]
[1748872016257,1.99114,2510.0,2509.5,0.37650785]
[1748872016258,0.79658,2509.6,2509.5,0.37650785]
[1748872016560,0.79661,2509.5,2509.4,0.37650785]
[1748872016866,2.05881,2509.5,2509.4,7.85e-06]
[1748872017163,7.05881,2509.5,2509.4,7.85e-06]
[1748872017662,0.79667,2509.3,2509.2,0.00597039]
[1748872017860,4.00447,2509.3,2509.2,0.00597039]
[1748872018161,23.71247,2509.3,2509.2,0.00597039]
[1748872018763,28.71247,2509.3,2509.2,0.00597039]
[1748872020463,28.71247,2509.3,2507.5,1.99308]
[1748872020464,1.99183,2509.2,2507.5,1.99308]
[1748872020766,3.2078,2508.2,2507.1,3.2078]
[1748872020964,7.9948,2508.2,2507.5,1.1741]
[1748872021159,3.2078,2507.9,2507.7,0.79717]
[1748872021359,4.00492,2507.9,2507.8,1.3618]
[1748872021563,0.79721,2507.6,2507.5,1.18007039]
[1748872021762,4.00501,2507.6,2507.5,0.00597039]
[1748872022166,5.35051,2507.6,2507.5,0.00597039]
[1748872022362,5.35051,2507.6,2506.5,3.2078]
[1748872022363,1.99312,2507.5,2506.5,3.2078]
[1748872022570,3.98455,2508.6,2506.5,3.2078]
[1748872022571,3.2078,2507.2,2507.1,0.79737]
[1748872022768,22.9168,2507.2,2507.1,0.79737]
[1748872022969,22.9168,2507.2,2506.7,1.111]
[1748872023165,22.9168,2507.2,2506.8,1.3796]
[1748872023465,3.2078,2506.9,2506.7,0.80346253]
[1748872023665,4.00524,2506.9,2506.7,0.00598253]
[1748872023865,3.2078,2506.9,2506.7,0.00598253]
[1748872024262,0.79747,2506.8,2506.7,0.00598253]
[1748872024569,19.715,2506.8,2506.7,0.00598253]
[1748872024760,3.2078,2506.9,2506.7,0.00598253]
[1748872024960,20.1058,2506.8,2506.7,0.80346253]
[1748872025168,0.3908,2506.8,2506.7,0.80346253]
[1748872025767,1.99273,2508.0,2506.7,0.80346253]
[1748872025768,3.2078,2507.6,2506.9,1.99355]
[1748872025964,3.2078,2507.6,2507.5,0.79724]
[1748872026161,0.79725,2507.5,2507.3,0.7973]
[1748872026360,23.71903,2507.6,2507.3,0.7973]
[1748872026561,22.9218,2507.6,2506.8,1.1283]
[1748872026764,4.00518,2507.1,2506.8,1.92575]
[1748872026964,3.2078,2507.1,2506.8,1.1283]
[1748872027164,3.2078,2507.1,2507.0,0.7974]
[1748872027365,3.2078,2507.1,2506.8,1.1283]
[1748872027765,19.719,2507.1,2507.0,0.7974]
[1748872027965,3.2078,2507.4,2506.8,1.1283]
[1748872027966,3.2078,2507.4,2507.3,0.79731]
[1748872028168,22.9268,2507.4,2507.2,0.79733]
[1748872028371,22.9268,2507.4,2507.2,0.79732]
[1748872028568,22.9268,2507.4,2506.8,1.1283]
[1748872028569,22.9268,2507.4,2507.3,0.79731]
[1748872029073,22.9258,2507.4,2507.3,0.79731]
[1748872029275,3.2078,2507.4,2507.3,0.79731]
[1748872029570,19.718,2507.4,2507.3,0.79731]
[1748872029767,20.51528,2507.4,2507.1,0.79736]
[1748872029962,19.718,2507.4,2507.2,0.79734]
[1748872030163,19.718,2507.4,2506.9,3.2078]
[1748872030365,4.79,2507.6,2507.0,1.99352]
[1748872030566,19.721,2507.5,2507.0,1.1434]
[1748872030769,0.79733,2507.3,2507.1,0.79736]
[1748872030975,20.9912,2507.5,2507.0,1.1434]
[1748872031278,20.9912,2507.5,2507.1,0.79735]
[1748872031476,3.2078,2507.7,2507.0,1.1434]
[1748872031663,3.2078,2507.7,2507.1,1.99344]
[1748872031868,19.72,2507.6,2507.1,1.99344]
[1748872032169,19.72,2507.6,2507.5,0.79724]
[1748872032370,0.79725,2507.5,2507.0,1.1434]
[1748872032569,20.51723,2507.6,2507.0,3.13689]
[1748872032773,19.72,2507.6,2507.0,3.13689]
[1748872032979,19.72,2507.6,2507.5,0.79724]
[1748872033974,3.2078,2507.7,2507.2,1.99336]
[1748872033975,3.2078,2507.7,2507.6,0.79721]
[1748872034468,4.791,2508.0,2507.9,0.79712]
[1748872034666,0.00597039,2508.1,2508.0,0.79709]
[1748872035070,0.00597039,2508.1,2508.0,5.79709]
[1748872035372,0.00597039,2508.1,2508.0,0.79709]
[1748872035773,0.00597039,2508.1,2507.9,1.1337]
[1748872035968,0.80302039,2508.1,2508.0,0.79709]
[1748872036176,0.80302039,2508.1,2507.7,1.1865]
[1748872036177,0.79715,2507.8,2507.7,1.1865]
[1748872036371,3.21377039,2508.1,2507.7,1.98367]
[1748872036674,0.79718,2507.7,2507.6,0.00851688]
[1748872037168,1.99328,2507.4,2506.8,0.79745]
[1748872037372,1.99328,2507.4,2506.7,0.00598253]
[1748872037373,3.2078,2507.0,2506.7,0.00598253]
[1748872037674,3.2078,2507.4,2506.8,1.99367]
[1748872037878,19.72,2507.3,2507.2,0.79734]
[1748872038180,20.51733,2507.3,2507.1,0.79736]
[1748872038572,0.79742,2507.0,2506.8,0.79746]
[1748872038767,19.72,2507.3,2506.9,0.79741]
[1748872038768,3.2078,2507.1,2506.9,0.79741]
[1748872039075,3.90343772,2510.7,2506.7,0.00598253]
[1748872039076,19.721,2507.0,2506.7,0.00598253]
[1748872039373,22.9288,2507.0,2506.9,0.79743]
[1748872039675,19.721,2507.0,2506.9,0.79743]
[1748872039875,3.2078,2507.3,2507.2,0.79734]
[1748872040176,19.721,2507.3,2507.2,0.79734]
[1748872040776,4.783,2507.4,2507.3,0.79731]
[1748872041078,24.504,2507.4,2507.0,1.1132]
[1748872041276,19.721,2507.3,2507.2,0.79734]
[1748872041673,0.79734,2507.2,2507.1,1.309]
[1748872041875,24.504,2507.3,2506.7,0.00598253]
[1748872042172,0.79737,2507.1,2506.9,0.79744]
[1748872042372,0.79737,2507.1,2507.0,1.309]
[1748872042671,0.79727,2507.5,2507.0,1.309]
[1748872042983,7.9908,2507.7,2507.0,1.309]
[1748872042984,0.79732,2507.3,2507.2,0.79733]
[1748872043183,0.79734,2507.2,2507.1,0.79737]
[1748872043479,0.79734,2507.2,2507.1,35.8]
[1748872043674,0.79743,2506.9,2506.8,3.2078]
[1748872043870,24.92203,2507.4,2506.9,0.79742]
[1748872043871,0.79741,2507.0,2506.9,0.79742]
[1748872044172,4.0052,2507.0,2506.9,1.309]
[1748872044574,0.79746,2506.8,2506.7,0.00598253]
[1748872045583,5.79746,2506.8,2506.7,2.53e-06]
[1748872045879,0.79755,2506.5,2506.4,27.68669993]
[1748872046077,28.50935,2506.5,2506.4,27.68669993]
[1748872047573,33.50935,2506.5,2506.4,27.68669993]
[1748872048078,4.00535,2506.5,2506.4,27.68669993]
[1748872048280,28.51235,2506.5,2506.4,27.68669993]
[1748872049176,33.51235,2506.5,2506.4,27.68669993]
[1748872049481,23.72835,2506.5,2506.4,27.68669993]
[1748872050485,23.72835,2506.5,2506.4,0.79758]
[1748872050781,0.00598253,2506.7,2506.6,0.79752]
[1748872050988,19.72998253,2506.7,2506.6,0.79752]
[1748872051380,0.00598253,2506.7,2506.6,0.79752]
[1748872051686,0.79752,2506.6,2506.5,1.3071]
[1748872051884,0.79758,2506.4,2506.3,2.2907]
[1748872052071,0.79758,2506.4,2506.3,3.5978]
[1748872052381,1.99424,2506.1,2505.4,3.2078]
[1748872052583,0.79774,2505.9,2505.8,0.79777]
[1748872052884,19.723,2505.9,2505.7,1.3071]
[1748872053086,19.723,2505.8,2505.7,1.3071]
[1748872053280,3.2078,2506.3,2505.9,1.99435]
[1748872053584,4.00543,2506.3,2506.0,1.2455]
[1748872053773,4.00543,2506.3,2506.2,0.79765]
[1748872053970,23.73043,2506.3,2506.2,0.79765]
[1748872054170,0.79767,2506.2,2506.1,0.79767]
[1748872054373,4.00543,2506.3,2506.2,0.79765]
[1748872054575,0.79768,2506.1,2506.0,1.2455]
[1748872054980,1.99412,2506.2,2505.8,0.79775]
[1748872055282,0.79777,2505.8,2505.7,1.2455]
[1748872055675,0.79777,2505.8,2505.6,35.8]
[1748872055981,0.79789,2505.5,2505.3,7.90968232]
[1748872056174,0.79789,2505.5,2505.4,1.2455]
[1748872056375,0.7979,2505.4,2505.3,3.90396232]
[1748872056575,4.0057,2505.4,2505.3,3.90396232]
[1748872057675,3.2078,2505.4,2505.3,4.70189232]
[1748872057971,20.5239,2505.4,2505.3,3.90396232]
[1748872058185,23.7317,2505.4,2505.3,3.90396232]
[1748872059090,9.3894,2505.4,2505.3,3.90396232]
[1748872059274,3.8065,2505.4,2505.3,3.90396232]
[1748872059584,20.3247,2505.4,2505.3,4.70189232]
[1748872060075,0.5987,2505.4,2505.3,4.70189232]
[1748872060282,0.5987,2505.4,2505.3,9.70189232]
[1748872060484,20.3277,2505.4,2505.3,13.31549232]